bitfinex-derivatives/quotes_BTCF0:USTF0_20251120
["timestamp","ask_amount","ask_price","bid_price","bid_amount"]
[1763659696727,0.0001724,87015.0,87014.0,0.03962]
[1763659697026,0.00090509,87015.0,87014.0,0.002198]
[1763659697236,0.0001724,87015.0,87014.0,0.041818]
[1763659697531,0.00090509,87015.0,87014.0,0.002198]
[1763659697717,0.08750509,87015.0,87014.0,0.002198]
[1763659698222,0.08750509,87015.0,86998.0,0.0001724]
[1763659698426,0.00090509,87015.0,87013.0,0.0115053]
[1763659698622,0.00090509,87015.0,87014.0,0.002198]
[1763659698822,0.0001724,87015.0,87014.0,0.002198]
[1763659699022,0.03996876,87041.0,87039.0,0.0115018]
[1763659699328,0.07879796,87062.0,87039.0,0.0115018]
[1763659699329,0.03996876,87056.0,87050.0,0.0115004]
[1763659699517,0.03996876,87057.0,87051.0,0.002198]
[1763659699722,0.08733269,87052.0,87051.0,0.002198]
[1763659700126,0.08733269,87052.0,87051.0,0.0136983]
[1763659700517,0.18040897,87052.0,87051.0,0.002198]
[1763659700717,0.08733269,87052.0,87051.0,0.002198]
[1763659701332,0.08833269,87052.0,87051.0,0.002198]
[1763659701518,0.09983279,87052.0,87051.0,0.002198]
[1763659701718,0.08833269,87052.0,87051.0,0.002198]
[1763659701919,0.20727972,87052.0,87051.0,0.002198]
[1763659702241,0.12477443,87052.0,87051.0,0.002198]
[1763659702529,0.0866,87044.0,87043.0,0.0001724]
[1763659702725,0.02567433,87044.0,87043.0,0.0023704]
[1763659703322,0.00073269,87044.0,87043.0,0.0023704]
[1763659703521,0.02567151,87044.0,87043.0,0.0023704]
[1763659703728,1e-08,87044.0,87043.0,0.0880904]
[1763659704032,0.0001724,87060.0,87059.0,0.0972192]
[1763659704215,0.0001724,87060.0,87059.0,0.09941723]
[1763659704422,0.02622,87100.0,87079.0,0.0114966]
[1763659704423,0.03996876,87085.0,87079.0,0.0114966]
[1763659704736,0.0114956,87087.0,87080.0,0.00219803]
[1763659705030,0.02622,87100.0,87080.0,0.08791803]
[1763659705031,0.03996876,87095.0,87080.0,0.08791803]
[1763659705326,0.06618876,87100.0,87080.0,0.08791803]
[1763659705630,0.0001723,87089.0,87088.0,0.0972154]
[1763659705820,0.03996876,87112.0,87088.0,0.00219803]
[1763659706021,0.03996876,87114.0,87111.0,0.0114922]
[1763659706219,0.0980919,87114.0,87113.0,0.00219803]
[1763659706433,0.0866,87114.0,87113.0,0.00219803]
[1763659706627,0.17919651,87114.0,87113.0,0.00219803]
[1763659706824,0.051153,87106.0,87105.0,0.00017219]
[1763659707033,0.051153,87106.0,87105.0,0.00237022]
[1763659707034,0.098093,87106.0,87105.0,0.00237022]
[1763659707330,0.02622,87108.0,87068.0,0.07768]
[1763659707636,0.0114936,87102.0,87071.0,0.00219803]
[1763659707931,0.0114944,87096.0,87091.0,0.0114949]
[1763659708122,0.0114968,87078.0,87071.0,0.0114976]
[1763659708323,0.00017219,87083.0,87080.0,0.0114963]
[1763659708522,0.00017219,87090.0,87089.0,0.0114952]
[1763659708729,0.00017219,87090.0,87089.0,0.09941323]
[1763659709536,0.08971858,87114.0,87092.0,0.0114948]
[1763659709855,0.0114883,87142.0,87080.0,0.0574822]
[1763659709856,0.0119553,87126.0,87125.0,0.0114904]
[1763659710127,0.0119553,87126.0,87125.0,0.05325843]
[1763659710323,0.02622,87140.0,87125.0,0.05325843]
[1763659710324,0.09051057,87140.0,87125.0,0.00219803]
[1763659710525,0.011488,87145.0,87126.0,0.0114903]
[1763659710724,0.00017219,87141.0,87131.0,0.0114896]
[1763659710931,0.00017219,87141.0,87132.0,0.00219803]
[1763659711126,0.0114885,87140.0,87133.0,0.0114894]
[1763659711340,0.0524885,87140.0,87139.0,0.00219803]
[1763659711536,0.041,87140.0,87139.0,0.00219803]
[1763659711831,0.00117219,87141.0,87140.0,0.0114885]
[1763659712030,0.09532945,87141.0,87140.0,0.01368653]
[1763659712234,0.00117219,87141.0,87140.0,0.01368653]
[1763659712830,0.09283059,87141.0,87140.0,0.00219803]
[1763659713527,0.09283059,87141.0,87124.0,0.00017219]
[1763659713528,0.0923805,87125.0,87124.0,0.00017219]
[1763659713732,0.04172,87108.0,87107.0,0.0114929]
[1763659714033,0.0114921,87113.0,87110.0,0.0114924]
[1763659714228,0.02288,87129.0,87111.0,0.00219803]
[1763659714432,0.0114922,87112.0,87111.0,0.00219803]
[1763659714735,0.08089,87104.0,87103.0,0.00017219]
[1763659714935,0.08089,87104.0,87103.0,0.00237022]
[1763659715351,0.00017219,87120.0,87116.0,0.0114915]
[1763659715639,0.08106219,87120.0,87119.0,0.00219803]
[1763659715836,0.00017219,87120.0,87119.0,0.00219803]
[1763659716641,0.08106219,87120.0,87119.0,0.00219803]
[1763659718233,0.08106219,87120.0,87103.0,0.00017219]
[1763659718234,0.08089,87104.0,87103.0,0.00017219]
[1763659718428,0.10377,87087.0,87061.0,1.5]
[1763659718630,0.10377,87087.0,87040.0,0.43297843]
[1763659718631,0.0114971,87076.0,87045.0,0.01543]
[1763659718834,0.0114971,87076.0,87046.0,0.00219803]
[1763659719038,0.03472965,87087.0,87047.0,1.5]
[1763659719241,0.08089,87076.0,87048.0,0.00219803]
[1763659719545,0.03472965,87087.0,87070.0,0.08171]
[1763659719546,0.00017229,87071.0,87070.0,0.08171]
[1763659719848,0.00017229,87071.0,87070.0,0.08390803]
[1763659720038,0.00010896,87075.0,87074.0,0.0932072]
[1763659720245,0.10377,87108.0,87074.0,0.00219803]
[1763659720435,0.11550835,87108.0,87095.0,0.0114944]
[1763659720638,0.0923842,87097.0,87096.0,0.00219803]
[1763659720839,0.08089,87097.0,87096.0,0.00219803]
[1763659721146,0.00017229,87105.0,87104.0,0.0114933]
[1763659721326,0.08106229,87105.0,87104.0,0.00219803]
[1763659721525,0.08089,87104.0,87103.0,0.0114933]
[1763659721727,0.08089,87104.0,87103.0,0.00219803]
[1763659722341,0.00017229,87105.0,87103.0,0.00219803]
[1763659722342,0.00017229,87105.0,87104.0,0.0114933]
[1763659722546,0.00017229,87105.0,87104.0,0.01369133]
[1763659723835,0.00017229,87105.0,87104.0,0.00219803]
[1763659724440,0.01150588,87124.0,87104.0,0.00219803]
[1763659724642,0.0646,87129.0,87128.0,0.0114901]
[1763659724945,0.07628395,87129.0,87128.0,0.00219803]
[1763659725327,0.21679529,87129.0,87128.0,0.00219803]
[1763659725526,0.11526,87129.0,87128.0,0.00219803]
[1763659725735,0.08089,87121.0,87120.0,0.00017218]
[1763659726036,0.08089,87121.0,87120.0,0.00237021]
[1763659727034,0.08089,87121.0,87120.0,0.00017218]
[1763659727234,0.14149284,87129.0,87108.0,0.0114926]
[1763659727235,0.08089,87109.0,87108.0,0.0114927]
[1763659727432,0.08089,87109.0,87108.0,0.01369073]
[1763659727632,0.08089,87109.0,87108.0,0.00219803]
[1763659728143,0.08089,87109.0,87108.0,0.01369073]
[1763659728643,0.08106218,87117.0,87116.0,0.0114917]
[1763659728836,0.08106218,87117.0,87116.0,0.01368973]
[1763659729041,0.08106218,87117.0,87100.0,0.00017218]
[1763659729042,0.00017218,87117.0,87100.0,0.00017218]
[1763659729345,0.08089,87103.0,87102.0,0.0114935]
[1763659729646,0.0923837,87101.0,87100.0,0.00017218]
[1763659729862,0.0114939,87099.0,87077.0,0.0114967]
[1763659730037,0.0021965,87098.0,87082.0,0.0007342]
[1763659730342,0.0114944,87096.0,87095.0,0.0114942]
[1763659730543,0.0021965,87096.0,87095.0,0.0122284]
[1763659730943,0.00017218,87104.0,87103.0,0.0114934]
[1763659731137,0.00236868,87104.0,87103.0,0.0122276]
[1763659731337,8e-08,87104.0,87103.0,0.0939376]
[1763659732438,0.03996876,87124.0,87123.0,0.0114907]
[1763659732738,0.12305526,87124.0,87123.0,0.0122249]
[1763659733149,0.0830865,87124.0,87123.0,0.0122249]
[1763659733347,0.07484786,87129.0,87126.0,0.0114904]
[1763659733348,0.03996876,87129.0,87126.0,0.0114904]
[1763659733646,0.011491,87122.0,87119.0,0.00017218]
[1763659733850,0.1059665,87120.0,87119.0,0.00090638]
[1763659734040,0.0439165,87120.0,87119.0,0.00090638]
[1763659734748,0.0021965,87120.0,87119.0,0.00090638]
[1763659735444,0.001,87124.0,87119.0,0.00090638]
[1763659735445,0.001,87124.0,87123.0,0.0114907]
[1763659735635,0.09327014,87129.0,87128.0,0.0114901]
[1763659735851,0.0021965,87129.0,87128.0,0.0007342]
[1763659736346,0.00017218,87136.0,87128.0,0.0007342]
[1763659736347,0.00017218,87136.0,87135.0,0.0114892]
[1763659736649,0.08325868,87136.0,87135.0,0.0007342]
[1763659736850,0.00236868,87136.0,87135.0,0.0007342]
[1763659737943,0.04408868,87136.0,87135.0,0.0007342]
[1763659738150,0.00236868,87136.0,87135.0,0.0007342]
[1763659738552,0.00017218,87136.0,87135.0,0.0007342]
[1763659738944,0.00117218,87136.0,87135.0,0.0424542]
[1763659739148,0.08425868,87136.0,87135.0,0.0007342]
[1763659740353,0.08425868,87136.0,87119.0,0.00017218]
[1763659740354,0.08089,87120.0,87119.0,0.01166338]
[1763659740649,0.0830865,87120.0,87119.0,2.18e-06]
[1763659740843,0.0114932,87105.0,87104.0,0.0114931]
[1763659741043,0.0830865,87105.0,87104.0,0.0122273]
[1763659741440,0.0830865,87105.0,87104.0,0.0122275]
[1763659741641,0.03996876,87123.0,87120.0,0.0114911]
[1763659741841,0.08089,87127.0,87122.0,0.0114908]
[1763659742047,0.08089,87124.0,87123.0,0.0122249]
[1763659742246,0.00017218,87130.0,87129.0,0.01149]
[1763659742442,0.07982868,87130.0,87129.0,0.0122242]
[1763659742848,0.00236868,87130.0,87129.0,0.0122242]
[1763659743044,0.07982868,87130.0,87129.0,0.0007342]
[1763659743249,0.07982868,87130.0,87113.0,0.00017218]
[1763659743250,0.07746,87114.0,87113.0,0.00017218]
[1763659743444,0.0796565,87114.0,87105.0,0.0114931]
[1763659743652,0.07746,87112.0,87111.0,0.0114923]
[1763659743851,0.0796565,87112.0,87111.0,0.0122265]
[1763659744151,0.0021965,87112.0,87111.0,0.0122265]
[1763659744742,0.0911487,87112.0,87111.0,0.0007342]
[1763659744955,0.07746,87104.0,87103.0,2.18e-06]
[1763659745155,0.03863,87082.0,87079.0,0.0114965]
[1763659745453,0.0408265,87082.0,87081.0,0.00082994]
[1763659745651,0.0021965,87082.0,87081.0,0.01232624]
[1763659745859,0.07746,87109.0,87108.0,0.0114927]
[1763659746051,0.0796565,87109.0,87108.0,0.0122269]
[1763659746251,0.17133911,87109.0,87108.0,0.0122269]
[1763659746557,0.09138581,87109.0,87108.0,0.0007342]
[1763659746748,0.0796565,87109.0,87108.0,0.0007342]
[1763659747363,0.17132076,87109.0,87108.0,0.0007342]
[1763659747560,0.0796565,87109.0,87108.0,0.0007342]
[1763659748148,0.0021965,87109.0,87108.0,0.0007342]
[1763659749057,0.00017218,87117.0,87108.0,0.0007342]
[1763659749058,0.00017218,87117.0,87116.0,0.0114917]
[1763659749261,0.07746,87137.0,87136.0,0.011489]
[1763659749451,0.07746,87137.0,87111.0,0.0114923]
[1763659749452,0.03863,87112.0,87111.0,0.0114923]
[1763659749649,0.03863,87112.0,87092.0,0.07254364]
[1763659749650,0.0796565,87112.0,87084.0,0.0114958]
[1763659749846,0.0021965,87112.0,87081.0,9.574e-05]
[1763659750046,0.0021965,87112.0,87084.0,0.0114958]
[1763659750047,0.011493,87106.0,87084.0,0.0114958]
[1763659750253,0.00017218,87104.0,87081.0,9.574e-05]
[1763659750447,0.07746,87095.0,87084.0,0.00017218]
[1763659750648,0.00219803,87095.0,87094.0,0.0114946]
[1763659750853,0.00219803,87095.0,87093.0,0.0114946]
[1763659751954,0.00219803,87095.0,87086.0,0.0114955]
[1763659751955,0.03863,87086.0,87084.0,0.00017218]
[1763659752153,0.07746,87082.0,87060.0,0.04110372]
[1763659752359,0.07746,87082.0,87044.0,0.04110372]
[1763659752360,0.0115003,87051.0,87044.0,0.04110372]
[1763659752661,0.0114979,87070.0,87042.0,0.0115014]
[1763659752860,0.00219803,87069.0,87050.0,0.14847726]
[1763659753064,0.04082803,87069.0,87068.0,0.011498]
[1763659753261,0.07975377,87069.0,87068.0,0.011498]
[1763659753459,0.07975377,87069.0,87050.0,0.14847726]
[1763659753460,0.09157382,87069.0,87050.0,0.14847726]
[1763659753662,0.00229377,87069.0,87068.0,0.011498]
[1763659753960,9e-08,87077.0,87076.0,0.0871669]
[1763659754164,0.22727522,87120.0,87093.0,0.0114947]
[1763659754165,0.0116677,87104.0,87093.0,0.0114947]
[1763659754464,0.0114934,87103.0,87096.0,0.0114943]
[1763659754657,0.07746,87091.0,87090.0,0.0114951]
[1763659754856,0.07965803,87091.0,87090.0,0.0114951]
[1763659755056,0.00219803,87091.0,87090.0,0.0114951]
[1763659756366,0.07965803,87091.0,87090.0,0.0114951]
[1763659756663,0.08065803,87091.0,87090.0,0.0114951]
[1763659756865,0.00319803,87091.0,87087.0,0.0114954]
[1763659757258,0.00017229,87099.0,87098.0,0.048774]
[1763659757561,0.092862,87115.0,87109.0,0.0114925]
[1763659757769,0.00219803,87114.0,87100.0,0.14847726]
[1763659757957,0.00219803,87114.0,87110.0,0.0114923]
[1763659758266,0.03996876,87174.0,87152.0,0.0114868]
[1763659758561,0.00017218,87165.0,87164.0,0.0114853]
[1763659758870,0.0114811,87197.0,87164.0,0.0114853]
[1763659758871,0.03996876,87198.0,87167.0,0.0114849]
[1763659759067,0.0007285,87184.0,87168.0,0.00219803]
[1763659759363,0.03996876,87209.0,87205.0,0.0114799]
[1763659759553,0.0114781,87219.0,87206.0,0.00219803]
[1763659759754,0.0007285,87208.0,87206.0,0.00219803]
[1763659759956,0.0007285,87208.0,87207.0,0.0114797]
[1763659760161,0.0007285,87208.0,87207.0,0.00219803]
[1763659760356,0.012208,87208.0,87207.0,0.00219803]
[1763659760559,0.035248,87208.0,87207.0,0.00219803]
[1763659760874,0.035248,87208.0,87207.0,0.01367773]
[1763659760875,0.0007285,87208.0,87207.0,0.01367773]
[1763659761168,0.0007285,87208.0,87207.0,0.00219803]
[1763659761359,0.0007285,87208.0,87206.0,0.0114798]
[1763659761555,0.02304,87240.0,87180.0,0.35927656]
[1763659761556,0.0114762,87234.0,87197.0,0.057405]
[1763659761862,0.00219803,87233.0,87231.0,0.0114764]
[1763659762060,0.00219803,87233.0,87214.0,0.0114787]
[1763659762258,0.00219803,87233.0,87200.0,0.35927656]
[1763659762259,0.01401771,87233.0,87222.0,0.0114776]
[1763659762458,0.01401771,87233.0,87219.0,0.00017195]
[1763659762667,0.01401771,87233.0,87224.0,0.0114774]
[1763659762962,0.01401771,87233.0,87219.0,0.00017195]
[1763659763168,0.00017195,87236.0,87231.0,0.0114765]
[1763659763367,0.03996876,87292.0,87224.0,0.0114774]
[1763659763572,0.0114721,87265.0,87241.0,0.0114751]
[1763659763864,0.0114721,87265.0,87217.0,0.0688697]
[1763659763865,0.03996876,87275.0,87263.0,0.0114722]
[1763659764166,0.01395257,87275.0,87242.0,0.011475]
[1763659764361,0.01395257,87275.0,87250.0,0.35927656]
[1763659764558,0.00017195,87267.0,87260.0,0.0114726]
[1763659764767,0.00236998,87267.0,87264.0,0.0114721]
[1763659764971,0.00236998,87267.0,87256.0,0.0114732]
[1763659765157,0.00236998,87267.0,87260.0,0.0114726]
[1763659765360,0.00017195,87267.0,87265.0,0.011472]
[1763659765870,0.00219803,87266.0,87250.0,0.00017195]
[1763659766070,0.0114721,87265.0,87250.0,0.00017195]
[1763659766370,0.00219803,87251.0,87250.0,0.01164595]
[1763659766560,0.00219803,87251.0,87250.0,0.00017195]
[1763659766756,0.40219803,87251.0,87216.0,0.0114784]
[1763659766964,0.40219803,87251.0,87202.0,0.0114802]
[1763659766965,0.0889377,87222.0,87202.0,0.0114802]
[1763659767267,0.0889377,87222.0,87170.0,0.37834656]
[1763659767268,0.0114797,87207.0,87170.0,0.37834656]
[1763659767471,0.0114797,87207.0,87154.0,0.0114866]
[1763659767472,0.0114811,87197.0,87164.0,1.5]
[1763659767664,0.0114811,87197.0,87147.0,0.0114875]
[1763659767665,0.02304,87193.0,87147.0,0.0114875]
[1763659767971,0.0114841,87173.0,87172.0,2.06e-06]
[1763659768173,0.00219803,87173.0,87160.0,0.0114858]
[1763659768359,0.00228532,87173.0,87151.0,0.011487]
[1763659768561,0.00228532,87173.0,87131.0,1.5]
[1763659768757,0.00228532,87173.0,87143.0,0.011488]
[1763659768970,0.0114857,87162.0,87149.0,0.00017206]
[1763659769164,0.00219803,87150.0,87149.0,0.00017206]
[1763659769763,0.00219803,87150.0,87147.0,0.001]
[1763659769764,0.0114873,87149.0,87147.0,2.06e-06]
[1763659769964,0.00219803,87148.0,87147.0,2.06e-06]
[1763659770266,0.00219803,87148.0,87125.0,0.00010401]
[1763659770267,0.0114885,87141.0,87126.0,0.0114903]
[1763659770458,0.0114903,87126.0,87125.0,0.00010401]
[1763659770662,0.01999,87125.0,87077.0,0.0574837]
[1763659770859,0.0114916,87117.0,87102.0,0.0114934]
[1763659771058,0.00219803,87116.0,87108.0,0.0114927]
[1763659771263,0.00017217,87118.0,87115.0,0.0114918]
[1763659772063,0.0001106,87126.0,87125.0,0.0114905]
[1763659772273,0.0114874,87149.0,87118.0,0.0114913]
[1763659772571,0.00219803,87125.0,87121.0,0.011491]
[1763659772875,0.0114874,87149.0,87135.0,0.0114891]
[1763659773164,0.00010401,87148.0,87139.0,0.0114885]
[1763659773367,0.00219803,87140.0,87134.0,0.0114893]
[1763659773564,0.00219803,87140.0,87133.0,0.00017217]
[1763659773760,0.00219803,87140.0,87138.0,0.0114887]
[1763659773964,0.0114893,87134.0,87092.0,0.0114948]
[1763659774172,0.01963,87100.0,87066.0,0.0114982]
[1763659774468,0.01963,87125.0,87066.0,0.0114982]
[1763659774469,0.00229986,87099.0,87066.0,0.0114982]
[1763659774770,0.00010183,87099.0,87097.0,0.011494]
[1763659775071,0.00010183,87099.0,87081.0,0.057481]
[1763659775072,0.0114876,87147.0,87102.0,0.0114935]
[1763659775277,0.00219803,87146.0,87113.0,0.0574604]
[1763659775568,0.00219803,87146.0,87101.0,0.0574682]
[1763659775569,0.00219803,87146.0,87140.0,0.0114884]
[1763659775762,0.00219803,87146.0,87144.0,0.0114879]
[1763659776376,0.00219803,87146.0,87136.0,0.00017217]
[1763659776377,0.00017217,87154.0,87153.0,0.0114868]
[1763659776871,0.0023702,87154.0,87152.0,0.0114868]
[1763659777263,0.0114818,87191.0,87153.0,0.0114868]
[1763659777486,0.0114818,87191.0,87133.0,0.0574473]
[1763659777487,0.00219803,87180.0,87177.0,0.0114836]
[1763659777773,0.01359159,87199.0,87150.0,0.35927656]
[1763659777968,0.00219803,87180.0,87174.0,0.0114839]
[1763659778175,0.00219803,87180.0,87139.0,0.0574429]
[1763659778368,0.00017205,87168.0,87167.0,0.0114849]
[1763659778565,0.00237008,87168.0,87151.0,0.00017205]
[1763659779178,0.00237008,87168.0,87164.0,0.0114852]
[1763659780263,0.00237008,87168.0,87153.0,0.001]
[1763659780475,0.00237008,87168.0,87164.0,0.0114853]
[1763659780875,0.00017205,87168.0,87164.0,0.0114853]
[1763659781571,0.0114811,87197.0,87182.0,0.0114829]
[1763659781779,0.00219803,87191.0,87153.0,0.0584336]
[1763659781972,0.0114824,87187.0,87179.0,0.0114834]
[1763659782173,0.00219803,87180.0,87153.0,0.001]
[1763659782368,0.35927656,87230.0,87176.0,0.0114836]
[1763659782568,0.07149718,87248.0,87169.0,0.0689079]
[1763659782569,0.00017205,87205.0,87187.0,0.00017205]
[1763659782872,0.00219803,87204.0,87198.0,0.0114808]
[1763659783067,0.40219803,87204.0,87187.0,0.00017205]
[1763659783274,0.00219803,87204.0,87187.0,0.00017205]
[1763659783771,0.011482,87189.0,87187.0,0.00017205]
[1763659783972,0.00219803,87188.0,87181.0,0.0114831]
[1763659784273,0.00219803,87188.0,87150.0,0.35927656]
[1763659784274,0.00219803,87188.0,87162.0,0.0114855]
[1763659784487,0.00219803,87188.0,87186.0,0.0114823]
[1763659784880,0.00017205,87196.0,87195.0,0.0114813]
[1763659785170,0.00237008,87196.0,87195.0,0.0114813]
[1763659785478,0.00237008,87196.0,87178.0,0.00017205]
[1763659785680,0.011483,87182.0,87178.0,0.00017205]
[1763659785975,0.00219803,87179.0,87178.0,0.00017205]
[1763659786379,0.00219803,87179.0,87158.0,0.011486]
[1763659786576,0.00219803,87179.0,87144.0,0.00864]
[1763659786577,0.0114838,87176.0,87144.0,0.00864]
[1763659786772,0.03341,87169.0,87168.0,0.0114847]
[1763659786973,0.00219803,87169.0,87168.0,0.0114847]
[1763659787375,0.01963,87164.0,87144.0,0.00864]
[1763659787580,0.00219803,87145.0,87144.0,0.011488]
[1763659787781,0.00219803,87145.0,87144.0,0.012488]
[1763659787968,0.00017205,87163.0,87159.0,0.0114859]
[1763659788687,0.35927656,87210.0,87162.0,0.06952]
[1763659788980,0.00219803,87192.0,87176.0,0.0114837]
[1763659789167,0.00219803,87192.0,87142.0,0.01921637]
[1763659789168,0.01367983,87192.0,87184.0,0.0114827]
[1763659789375,0.00219803,87192.0,87191.0,0.0114818]
[1763659789574,0.03560803,87192.0,87191.0,0.0114818]
[1763659789775,0.03560803,87192.0,87184.0,0.0114827]
[1763659790171,0.03560803,87192.0,87179.0,0.00017205]
[1763659790172,0.0114832,87181.0,87179.0,0.00017205]
[1763659790375,0.011485,87167.0,87159.0,0.0114859]
[1763659790569,0.00219803,87160.0,87159.0,0.0114859]
[1763659791081,0.0114813,87195.0,87142.0,0.00014637]
[1763659791082,0.10112645,87182.0,87177.0,0.0114836]
[1763659791376,0.00219803,87180.0,87177.0,0.0114836]
[1763659791972,0.00219803,87180.0,87171.0,0.00017205]
[1763659792180,0.00219803,87180.0,87178.0,0.0114835]
[1763659792480,0.03341,87179.0,87178.0,0.0114835]
[1763659792671,0.00219803,87179.0,87171.0,0.00017205]
[1763659792878,0.00219803,87179.0,87178.0,0.0114835]
[1763659793175,0.03341,87172.0,87171.0,0.00017205]
[1763659793380,0.03341,87172.0,87133.0,0.0574471]
[1763659793381,0.01963,87171.0,87142.0,0.00014637]
[1763659793579,0.03341,87158.0,87142.0,0.00014637]
[1763659793778,0.00219803,87157.0,87152.0,0.0114869]
[1763659793976,0.00219803,87157.0,87156.0,0.0114864]
[1763659794483,0.03341,87143.0,87142.0,0.00014637]
[1763659794684,0.00219803,87143.0,87142.0,0.00014637]
[1763659794978,0.00219803,87143.0,87142.0,0.01163457]
[1763659795288,0.00017205,87165.0,87164.0,0.0810053]
[1763659795778,0.39924532,87210.0,87159.0,0.0114859]
[1763659795973,0.39924532,87210.0,87142.0,0.05758757]
[1763659795974,0.00219803,87164.0,87162.0,0.0114855]
[1763659796376,0.09272847,87182.0,87163.0,0.0114855]
[1763659796578,0.001,87165.0,87164.0,0.0810052]
[1763659796785,0.00219803,87181.0,87180.0,0.0114832]
[1763659797485,0.00017205,87189.0,87188.0,0.0114822]
[1763659797678,0.00237008,87189.0,87188.0,0.0114822]
[1763659798478,0.00237008,87189.0,87180.0,0.00017205]
[1763659798781,0.03341,87181.0,87180.0,0.01165525]
[1763659798980,0.03560803,87181.0,87180.0,0.01165525]
[1763659799189,0.001,87181.0,87180.0,0.08117525]
[1763659800285,0.06816803,87181.0,87180.0,0.00017205]
[1763659800587,0.0114848,87169.0,87162.0,0.0114855]
[1763659800886,0.06597,87157.0,87156.0,0.0114863]
[1763659801082,0.03560803,87157.0,87142.0,0.00014637]
[1763659801379,0.09416089,87157.0,87142.0,0.00014637]
[1763659801579,0.00219803,87157.0,87142.0,0.00014637]
[1763659801784,0.06597,87143.0,87142.0,0.00014637]
[1763659801985,0.06816803,87143.0,87140.0,0.0114884]
[1763659802281,0.01963,87150.0,87142.0,0.06616803]
[1763659802282,0.00017216,87150.0,87142.0,0.06616803]
[1763659802485,0.03996876,87190.0,87185.0,0.0114826]
[1763659802792,0.07879796,87205.0,87167.0,0.0574249]
[1763659802793,0.0133225,87215.0,87214.0,0.0114787]
[1763659802995,0.00083715,87215.0,87214.0,0.00219803]
[1763659803281,0.01909,87213.0,87172.0,0.0114842]
[1763659803482,0.00017204,87201.0,87185.0,0.0114825]
[1763659803688,0.00011625,87200.0,87186.0,0.00219803]
[1763659803885,0.00072853,87187.0,87184.0,0.00017204]
[1763659804090,9.613e-05,87186.0,87144.0,0.04111443]
[1763659804388,0.01909,87170.0,87159.0,0.00219803]
[1763659804583,0.00072853,87160.0,87159.0,0.01368403]
[1763659804786,0.00072853,87160.0,87159.0,0.00219803]
[1763659805180,0.00072853,87160.0,87119.0,0.04111443]
[1763659805385,0.00010149,87169.0,87155.0,0.00219803]
[1763659805690,0.00072853,87168.0,87167.0,0.0114849]
[1763659805887,0.00072853,87168.0,87167.0,0.01368293]
[1763659806188,0.00017204,87171.0,87170.0,0.01765]
[1763659806189,3e-08,87171.0,87170.0,0.01765]
[1763659806390,0.09288553,87205.0,87170.0,0.01984803]
[1763659806578,0.0652,87226.0,87170.0,0.01984803]
[1763659806579,0.00072853,87204.0,87170.0,0.01984803]
[1763659806782,0.00072853,87204.0,87201.0,0.0114805]
[1763659806986,0.00072853,87204.0,87203.0,0.00219803]
[1763659807283,0.00084023,87204.0,87203.0,0.00219803]
[1763659807486,0.0001117,87204.0,87203.0,0.00219803]
[1763659807690,0.00017204,87212.0,87211.0,0.0114791]
[1763659807884,0.00017204,87212.0,87211.0,0.01367713]
[1763659808082,0.00090057,87212.0,87211.0,0.00219803]
[1763659808587,6e-08,87212.0,87211.0,0.01367713]
[1763659808794,0.08961953,87238.0,87237.0,0.0114756]
[1763659808993,0.08961953,87238.0,87237.0,0.00219803]
[1763659809185,0.03996876,87266.0,87237.0,0.00219803]
[1763659809384,0.03996876,87279.0,87278.0,0.0114703]
[1763659809580,0.00072853,87279.0,87278.0,0.00219803]
[1763659810086,0.00017193,87287.0,87278.0,0.00219803]
[1763659810289,0.00072853,87286.0,87278.0,0.00219803]
[1763659810485,0.00072853,87286.0,87279.0,0.0114702]
[1763659810679,0.00072853,87286.0,87285.0,0.00219803]
[1763659811082,0.00072853,87286.0,87282.0,0.0114697]
[1763659811989,0.00172853,87286.0,87282.0,0.0114697]
[1763659812180,0.001,87286.0,87282.0,0.0114697]
[1763659812382,0.08984613,87321.0,87288.0,0.00977]
[1763659812590,0.08984613,87321.0,87319.0,0.0114649]
[1763659812787,0.00219803,87321.0,87288.0,0.00977]
[1763659812983,0.00219803,87321.0,87315.0,0.0114654]
[1763659813187,0.03262252,87354.0,87295.0,0.0573402]
[1763659813384,0.00017181,87333.0,87316.0,0.00017181]
[1763659813587,0.00219803,87332.0,87316.0,0.00017181]
[1763659813789,0.00219803,87332.0,87327.0,0.0114639]
[1763659813992,0.00017181,87333.0,87332.0,0.0114632]
[1763659814200,0.00017181,87333.0,87317.0,0.0114652]
[1763659814201,0.001,87321.0,87317.0,0.0114652]
[1763659814381,0.00017181,87333.0,87332.0,0.0114632]
[1763659814582,0.03996876,87366.0,87316.0,0.00017181]
[1763659814786,0.03996876,87366.0,87312.0,0.00883]
[1763659814787,0.00219803,87360.0,87341.0,0.0114621]
[1763659815090,0.00219803,87360.0,87312.0,0.00883]
[1763659815091,0.00219803,87360.0,87320.0,0.0573242]
[1763659815298,0.00219803,87360.0,87348.0,0.011461]
[1763659815487,0.00219803,87360.0,87345.0,0.00017181]
[1763659815686,0.02128803,87360.0,87345.0,0.00017181]
[1763659815882,0.0114597,87359.0,87345.0,0.00017181]
[1763659816087,0.00219803,87346.0,87345.0,0.00017181]
[1763659816592,0.00219803,87346.0,87297.0,0.00012499]
[1763659816893,0.00219803,87346.0,87325.0,0.011464]
[1763659817195,0.00219803,87346.0,87325.0,0.0114641]
[1763659817394,0.00219803,87346.0,87312.0,0.00713]
[1763659817587,0.00017181,87338.0,87320.0,0.00017181]
[1763659817783,0.00236984,87338.0,87334.0,0.0114629]
[1763659817991,0.00017181,87338.0,87334.0,0.0114629]
[1763659818196,0.0114591,87364.0,87346.0,0.0114613]
[1763659818388,0.0114594,87362.0,87346.0,0.0114613]
[1763659818585,0.4714021,87390.0,87356.0,0.0114601]
[1763659818586,0.00219803,87361.0,87356.0,0.0114601]
[1763659818793,0.00219803,87360.0,87336.0,0.01748]
[1763659818983,0.0114597,87359.0,87315.0,0.0573275]
[1763659819184,0.00017169,87346.0,87328.0,0.05749059]
[1763659819497,0.01316962,87373.0,87336.0,0.00866]
[1763659819792,0.00219803,87370.0,87321.0,0.0114646]
[1763659819995,0.0305496,87360.0,87344.0,0.0114617]
[1763659820289,0.0114603,87355.0,87316.0,0.0276]
[1763659820491,0.0114568,87381.0,87327.0,0.00017169]
[1763659820492,0.00017169,87344.0,87327.0,0.00017169]
[1763659820694,0.00219803,87343.0,87327.0,0.00017169]
[1763659820899,0.00219803,87343.0,87336.0,0.0114627]
[1763659821095,0.0114633,87332.0,87327.0,0.00017169]
[1763659821287,0.0114655,87315.0,87291.0,0.0114686]
[1763659821484,0.00219803,87314.0,87306.0,0.0114666]
[1763659821795,0.0114604,87354.0,87290.0,0.43143334]
[1763659822001,0.00219803,87344.0,87304.0,0.0573342]
[1763659822292,0.03996876,87379.0,87298.0,1.5]
[1763659822293,0.03996876,87393.0,87359.0,0.0114597]
[1763659822498,0.03996876,87393.0,87327.0,0.0114638]
[1763659822499,0.00219803,87360.0,87327.0,0.0114638]
[1763659822689,0.00219803,87360.0,87321.0,0.11384]
[1763659822891,0.00017168,87349.0,87345.0,0.0114615]